[Event "ESP-ch Teams Honor 2024"]
[Site "Melilla"]
[Date "2024.10.12"]
[Round "1.17"]
[White "Alonso Rosell, Alvar"]
[Black "Cuenca Jimenez, Jose Fernando"]
[Result "1/2-1/2"]
[ECO "A05"]
[WhiteElo "2550"]
[BlackElo "2480"]
[Annotator "TA"]
[PlyCount "81"]
[EventDate "2024.10.11"]
[EventType "team-tourn"]
[EventCountry "ESP"]
[SourceTitle "playchess.com"]
[Source "ChessBase"]
[SourceQuality "1"]
[WhiteTeam "Silla"]
[BlackTeam "Costa Calida"]
[TimeControl "5400+30"]

{[%evp 9,81,50,40,56,23,-1,20,35,44,41,33,37,25,24,61,55,57,44,58,61,70,68,68,68,80,84,82,85,100,46,45,59,56,52,74,65,56,62,77,50,48,41,48,52,42,44,80,0,0,3,5,4,5,0,5,0,25,22,18,6,58,48,56,67,70,40,62,35,77,70,73,62,58,76]} 1. Nf3 {[%emt 0:00:03]} d5 {[%emt 0:00:48]} 2. g3 {[%emt 0:00:06]} Nf6 {[%emt 0:01:10]} 3. Bg2 {[%emt 0:00:08]} c5 {[%emt 0:00:37]} 4. c4 {[%emt 0:03:37]} g6 {[%emt 0:07:56]} 5. cxd5 {[%emt 0:03:31]} Nxd5 {[%emt 0:01:33]} 6. d4 {[%emt 0:00:14]} Bg7 {[%emt 0:03:29]} 7. dxc5 {[%emt 0:02:44]} Qa5+ {[%emt 0:09:24]} 8. Nfd2 {[%emt 0:07:07] The position is equal.} Qxc5 {[%emt 0:06:15]} 9. Nb3 {[%emt 0:14:05][%csl LRc5,LRd5]} Qb4+ {[%emt 0:01:18]} 10. Bd2 {[%emt 0:00:09]} Qd6 {[%emt 0:00:58]} 11. Na3 {[%emt 0:07:07]} Nb6 {[%emt 0:07:17][%cal Oe8g8] Dodges Nc4} 12. Nb5 {[%emt 0:02:13]} Qd7 {[%emt 0:03:50]} 13. Bc3 $36 {[%emt 0:10:10][%mdl 2048] White is pushing.} Bxc3+ {[%emt 0:15:05]} 14. Nxc3 {[%emt 0:02:55]} Qxd1+ {[%emt 0:14:47]} 15. Rxd1 {[%emt 0:00:05]} Nc6 {[%emt 0:00:14]} 16. Nc5 {[%emt 0:07:38]} e6 {[%emt 0:17:51]} 17. f4 {[%emt 0:15:21]} Ke7 {[%emt 0:01:05]} 18. Kf2 {[%emt 0:00:34] White has more active pieces.} Rd8 {[%emt 0:01:54]} 19. Rxd8 {[%emt 0:03:37]} ({White should play} 19. Bxc6 $16 Rxd1 20. Rxd1 bxc6 21. N3e4) 19... Nxd8 $14 {[%emt 0:00:34]} 20. Rc1 $1 {[%emt 0:00:52]} Nd7 {[%emt 0:02:51]} 21. Nd3 {[%emt 0:01:30]} Rb8 {[%emt 0:01:31] Black is weak on the dark squares} 22. Nb5 {[%emt 0:01:39]} a6 {[%emt 0:00:06]} 23. Nd4 {[%emt 0:00:02]} Nb6 {[%emt 0:00:47]} 24. Nc5 {[%emt 0:05:26]} Bd7 {[%emt 0:00:26]} 25. Rc2 {[%emt 0:00:32]} Na4 {[%emt 0:00:41]} 26. Nxd7 {[%emt 0:02:55]} Kxd7 {[%emt 0:00:00]} 27. Nf3 {[%emt 0:00:08]} f6 {[%emt 0:00:32] [#] Against Ne5+} 28. g4 {[%emt 0:00:14]} ({Better is} 28. Nd2 $1 $16 {[%cal Rd2e4]}) 28... Rc8 $11 {[%emt 0:00:47]} 29. Rd2+ {[%emt 0:00:07]} Ke7 {[%emt 0:00:01]} 30. g5 {[%emt 0:00:06]} fxg5 {[%emt 0:00:37]} 31. Nxg5 {[%emt 0:00:32]} h6 $1 {[%emt 0:00:28]} 32. Nf3 {[%emt 0:00:30]} Nc6 {[%emt 0:00:52]} (32... Nf7 $5) 33. Ne1 {[%emt 0:06:54]} Nc5 {[%emt 0:00:39]} 34. Nd3 {[%emt 0:00:25]} Nxd3+ ({Black should try} 34... Rd8 $11) 35. Rxd3 {[%emt 0:00:03][%mdl 4096] Endgame. KRB-KRN} Rf8 {[%emt 0:01:04]} 36. Kg3 {[%emt 0:00:51]} Rc8 {[%emt 0:00:31]} 37. Rc3 {[%emt 0:01:19]} Kd6 {[%emt 0:00:21]} 38. h4 {[%emt 0:01:42]} Rb8 {[%emt 0:00:15]} 39. Be4 {[%emt 0:00:26]} Ne7 {[%emt 0:00:18]} 40. Rb3 {[%emt 0:00:15]} b6 {[%emt 0:01:03]} 41. Rd3+ {[%emt 0:01:25] Weighted Error Value: White=0.10 (very precise) /Black=0.12 (very precise) .  Mistake:       	White=2     	Black=1      Inaccurate:     	White=3     	Black=3      OK:         	White=14    	Black=11     Best:        	---       	Black=2      Strong:       	White=1     	Black=1} 1/2-1/2

[Event "ESP-ch Teams Honor 2024"]
[Site "Melilla"]
[Date "2024.10.12"]
[Round "1.18"]
[White "Camacho Collados, Marcos"]
[Black "Khademalsharieh, Sarasadat"]
[Result "1/2-1/2"]
[ECO "C26"]
[WhiteElo "2453"]
[BlackElo "2478"]
[Annotator "TA"]
[PlyCount "99"]
[EventDate "2024.10.11"]
[EventType "team-tourn"]
[EventCountry "ESP"]
[SourceTitle "playchess.com"]
[Source "ChessBase"]
[SourceQuality "1"]
[WhiteTeam "Costa Calida"]
[BlackTeam "Silla"]
[TimeControl "5400+30"]

{[%evp 9,99,0,0,-2,-6,0,-12,-2,8,-28,-33,-35,-2,-22,23,14,9,2,36,-9,-11,-9,8,0,-25,-26,-20,-38,-8,-198,-129,-141,-138,-131,-133,-119,-119,-110,-104,-94,-101,-116,-60,-113,-113,-108,-102,-118,-114,-128,-133,-177,-178,-175,-182,-178,-170,-197,-184,-208,-153,-204,-171,-155,0,-3,0,-13,0,0,0,-11,0,0,0,0,0,0,0,0,0,0,0,0,0,0,0,0,0,0,0,0]} 1. e4 {[%emt 0:00:04]} e5 {[%emt 0:00:11]} 2. Nc3 {[%emt 0:00:12]} Nf6 {[%emt 0:01:42]} 3. Bc4 {[%emt 0:02:43]} Bb4 {[%emt 0:05:56]} 4. a3 {[%emt 0:09:15]} Ba5 {[%emt 0:06:39]} 5. d3 {[%emt 0:33:35]} c6 {[%emt 0:17:21]} 6. Bg5 {[%emt 0:09:50]} h6 {[%emt 0:00:43]} 7. Bh4 {[%emt 0:00:49]} d6 {[%emt 0:03:43]} 8. Nge2 {[%emt 0:07:23]} Nbd7 {[%emt 0:02:36]} 9. b4 {[%emt 0:07:40]} Bb6 {[%emt 0:00:34]} 10. d4 {[%emt 0:00:43]} a5 {[%emt 0:08:00]} 11. b5 {[%emt 0:00:54]} Qc7 {[%emt 0:17:14]} 12. O-O {[%emt 0:02:26]} O-O {[%emt 0:00:47]} 13. Ba2 {[%emt 0:05:10]} Re8 {[%emt 0:05:58]} 14. Re1 {[%emt 0:03:08]} a4 {[%emt 0:01:26]} 15. Rb1 {[%emt 0:05:14]} Ba5 {[%emt 0:05:25]} 16. Qd3 {[%emt 0:00:13]} exd4 {[%emt 0:00:45]} 17. Qxd4 {[%emt 0:00:55]} Bb6 {[%emt 0:03:22]} 18. Qd1 {[%emt 0:04:01]} Nxe4 {[%emt 0:05:51]} 19. Rb4 $2 {[%emt 0:03:23]} (19. Nd4 $11 {and White is okay.} Ndf6 (19... Nxc3 $2 20. Bxf7+ Kxf7 21. Qh5+ Kg8 22. Qxe8+ Nf8 23. Re7 $18) 20. Nxe4 Nxe4 21. bxc6 bxc6 22. Bxf7+ Kxf7 23. Rxe4 (23. Qh5+ Kf8 $15) 23... Rxe4 24. Qf3+ Kg8 25. Qxe4) 19... Nxc3 {[%emt 0:04:29]} ({Better is} 19... Ndf6 $19 {aiming for ...Bg4.} 20. Nxe4 Nxe4) 20. Nxc3 $17 {[%emt 0:00:08] [#] Black must now prevent Bxf7+.} Ne5 {[%emt 0:00:37]} 21. Rxa4 {[%emt 0:00:59]} Rxa4 {[%emt 0:01:36]} 22. Nxa4 {[%emt 0:00:04]} Ba5 {[%emt 0:01:24]} 23. b6 {[%emt 0:01:01]} Bxb6 {[%emt 0:01:16]} 24. Nxb6 {[%emt 0:00:34]} Qxb6 {[%emt 0:00:04]} 25. Bg3 {[%emt 0:01:56]} (25. Qxd6 $2 {is the wrong capture.} Nf3+ 26. gxf3 Rxe1+ 27. Kg2 Qa5 $19 (27... Be6 $2 28. Qd2 $19)) 25... Be6 {[%emt 0:00:54]} (25... Qc5 $17 26. a4 Bg4) 26. Bxe5 {[%emt 0:00:32]} (26. Qxd6 $15 Bxa2 27. Bxe5) 26... dxe5 {[%emt 0:00:24]} ({Much worse is} 26... Bxa2 $6 27. Bxg7 Rxe1+ 28. Qxe1 $11) 27. Bxe6 {[%emt 0:00:24]} Rxe6 $15 {[%emt 0:00:04][%mdl 4096] Endgame. KQR-KQR} 28. h3 {[%emt 0:00:18]} e4 {[%emt 0:02:35]} 29. Re3 {[%emt 0:00:17]} Qc5 {[%emt 0:00:50]} 30. Qd7 {[%emt 0:00:38]} b5 {[%emt 0:00:59]} ({Don't play} 30... Qxc2 31. Qxb7 Qd1+ 32. Kh2 $17) 31. Qd8+ {[%emt 0:00:57]} Kh7 {[%emt 0:00:11]} 32. Qd2 {[%emt 0:00:26]} f5 {[%emt 0:00:23]} 33. g3 {[%emt 0:00:36]} Rd6 {[%emt 0:00:15]} 34. Qe2 {[%emt 0:00:12]} Qd5 {[%emt 0:00:32]} 35. Rc3 {[%emt 0:00:41]} (35. g4 $17) 35... g5 $19 {[%emt 0:01:40]} 36. Qe3 {[%emt 0:00:34]} Rg6 $2 {[%emt 0:01:19]} (36... Qe5 $17 {Hoping for ...f4.} 37. Qc5 Qf6) 37. Qa7+ $11 {[%emt 0:00:33] The position is equal.} Rg7 {[%emt 0:00:06]} 38. Qc5 {[%emt 0:00:20]} f4 {[%emt 0:00:29] [#] Strongly threatening ...fxg3.} (38... Qxc5 {simplifies} 39. Rxc5 Ra7 40. Rxc6 Rxa3 41. Rb6 e3) 39. Qxc6 {[%emt 0:00:28]} Qd1+ {[%emt 0:00:34]} 40. Kg2 {[%emt 0:00:42]} Qe2 {[%emt 0:00:34]} (40... Qd4 {simplifies} 41. g4 Re7 42. Qc5 Qf6) 41. Re3 {[%emt 0:00:30]} fxe3 {[%emt 0:00:40]} 42. Qxe4+ {[%emt 0:00:03]} Kh8 {[%emt 0:00:36]} 43. Qe8+ {[%emt 0:00:10]} Rg8 {[%emt 0:00:04]} 44. Qe5+ {[%emt 0:00:04]} Kh7 {[%emt 0:00:04]} 45. Qe7+ {[%emt 0:00:28]} Kg6 {[%emt 0:00:14]} 46. Qe6+ {[%emt 0:00:08]} Kg7 {[%emt 0:00:09]} 47. Qe7+ {[%emt 0:00:04]} Kh8 {[%emt 0:00:12]} 48. Qe5+ {[%emt 0:00:28]} Kh7 {[%emt 0:01:00]} 49. Qe7+ {[%emt 0:00:50]} Rg7 {[%emt 0:00:10]} 50. Qe4+ {[%emt 0:00:32] White happily takes the draw.   Weighted Error Value: White=0.15 (very precise) /Black=0.15 (very precise) .  Loses game:     	White=1     	---        Mistake:       	White=2     	Black=3      Inaccurate:     	White=4     	Black=4      OK:         	White=12    	Black=16     Best:        	White=5     	Black=2} 1/2-1/2

[Event "ESP-ch Teams Honor 2024"]
[Site "Melilla"]
[Date "2024.10.12"]
[Round "1.19"]
[White "Tabatabaei, M. Amin"]
[Black "Aravindh, Chithambaram VR."]
[Result "1/2-1/2"]
[ECO "D02"]
[WhiteElo "2702"]
[BlackElo "2698"]
[Annotator "TA"]
[PlyCount "78"]
[EventDate "2024.10.11"]
[EventType "team-tourn"]
[EventCountry "ESP"]
[SourceTitle "playchess.com"]
[Source "ChessBase"]
[SourceQuality "1"]
[WhiteTeam "Andreu"]
[BlackTeam "Solvay"]
[TimeControl "5400+30"]

{[%evp 11,78,-4,22,14,18,8,10,21,47,27,5,8,7,2,5,5,14,12,12,11,6,0,0,0,0,0,0,0,0,0,0,0,0,0,0,0,0,0,0,0,0,0,0,-10,0,-8,0,-12,-27,-734,-732,-740,-740,-764,-724,-29979,-29980,-29980,-29980,-29955,-29953,-29954,-29951,-29950,-29945,-29991,-5995,-29993,-29994]} 1. d4 {[%emt 0:00:04]} d5 {[%emt 0:00:33]} 2. Nf3 {[%emt 0:00:13]} Nf6 {[%emt 0:00:09]} 3. Bf4 {[%emt 0:00:10]} c5 {[%emt 0:00:10]} 4. e3 {[%emt 0:00:10]} e6 {[%emt 0:00:38]} 5. c3 {[%emt 0:00:19]} Nc6 {[%emt 0:00:20]} 6. Nbd2 {[%emt 0:00:13]} Nh5 {[%emt 0:00:35]} 7. Bg5 {[%emt 0:00:13]} f6 {[%emt 0:00:20][%cal Bf7f6,Bf6e5,Be5d4][%mdl 32]} 8. Bh4 {[%emt 0:00:08]} cxd4 {[%emt 0:00:34]} 9. cxd4 {[%emt 0:05:06] The position is equal.} Be7 {[%emt 0:00:32]} 10. Rc1 {[%emt 0:16:03]} (10. g4 $5) 10... O-O {[%emt 0:08:26]} 11. Bd3 {[%emt 0:11:56]} e5 {[%emt 0:07:42] [#]} 12. Nxe5 {[%emt 0:17:19]} fxe5 {[%emt 0:00:08]} 13. Qxh5 {[%emt 0:00:20]} g6 $1 {[%emt 0:00:06]} 14. Bxe7 {[%emt 0:06:26]} Qxe7 {[%emt 0:00:11]} 15. Qe2 {[%emt 0:00:05]} exd4 {[%emt 0:01:08]} 16. e4 {[%emt 0:07:14]} (16. O-O {simplifies} dxe3 17. Qxe3 Qxe3 18. fxe3 Bg4 19. Bc2) 16... Ne5 {[%emt 0:24:30][%cal Bc6e5,Be5d3,Bd3e1][%mdl 32] Threatens to win with ...Qg5.} 17. O-O {[%emt 0:01:12][%cal Bh1f1,Bf1f4,Bf4f3][%mdl 32]} Qg5 {[%emt 0:00:27]} 18. Rce1 {[%emt 0:18:51]} (18. exd5 Bg4 19. f3 Nxf3+ 20. Nxf3 Bxf3 21. Qe6+ Rf7 $17 (21... Kh8 $2 22. Rc2 $17)) 18... Bh3 {[%emt 0:24:47][%csl Gh3][%cal Rg5g2]} 19. f4 $1 {[%emt 0:00:12]} (19. exd5 $2 Qxg2#) 19... Rxf4 {[%emt 0:00:09]} 20. Rxf4 {[%emt 0:00:09]} Nxd3 {[%emt 0:00:43]} (20... Qxf4 $2 21. gxh3 Rf8 22. Kh1 $18 (22. exd5 $2 Nxd3 23. Qe6+ Rf7 $19)) 21. Rf3 {[%emt 0:05:43] Dancing on a razor blade.} Nxe1 {[%emt 0:00:25]} 22. Rxh3 {[%emt 0:00:11]} Nc2 {[%emt 0:00:13] Hoping for ...Ne3.} 23. exd5 {[%emt 0:03:49]} Ne3 {[%emt 0:01:19][%cal Oa8c8] aiming for ...Rc8!} 24. Nf1 {[%emt 0:01:32]} Nxf1 {[%emt 0:10:15]} 25. Qe6+ {[%emt 0:00:08]} Kh8 {[%emt 0:00:07]} 26. Kxf1 $11 {[%emt 0:00:47][%mdl 4096] Endgame. KQR-KQR} Qc1+ {[%emt 0:01:00]} 27. Ke2 {[%emt 0:01:12]} Qc2+ {[%emt 0:06:24]} 28. Ke1 {[%emt 0:00:22]} Qc1+ {[%emt 0:03:51]} 29. Ke2 {[%emt 0:00:02]} Qxb2+ {[%emt 0:00:04]} 30. Kd3 $2 {[%emt 0:00:19][%mdl 8192] [#] This move loses the game for White.} (30. Ke1 $11) 30... Qb5+ $1 $19 {[%emt 0:00:10]} (30... Qxa2 31. Qf6+ Kg8 32. Qe6+ Kh8 33. Qe5+ Kg8 34. Qe6+ Kh8 $11) 31. Kxd4 {[%emt 0:01:29]} Re8 {[%emt 0:01:53]} 32. Qf6+ {[%emt 0:01:36]} Kg8 {[%emt 0:00:05] ( -> ...Qb4+)} 33. d6 {[%emt 0:02:52]} Qb4+ {[%emt 0:03:33]} 34. Kd3 {[%emt 0:00:01]} Qb1+ {[%emt 0:00:15]} 35. Kd4 {[%emt 0:00:32]} Qb2+ {[%emt 0:02:21]} 36. Rc3 {[%emt 0:00:02]} Qd2+ {[%emt 0:00:05]} 37. Kc4 {[%emt 0:00:25]} Qxa2+ {[%emt 0:00:16]} (37... Qxg2 38. d7 Qxa2+ 39. Kc5 Qa5+ 40. Kd6 Qb6+ 41. Kd5 Qb5+ 42. Kd6 Qb6+ 43. Kd5 Qb5+ 44. Kd6 Qb6+ $11) 38. Kb5 {[%emt 0:01:30]} Qb2+ {[%emt 0:00:29]} (38... Qxg2 39. Qd4 Qb2+ (39... Qxh2 40. Rc7 $16) 40. Ka5 $15) (38... Qd5+ $142 39. Kb4 Re4+ (39... Qxg2 40. Qd4 $11) 40. Ka3 Qa5+ 41. Kb2 Re2+ 42. Kb3 Qa2+ (42... Rxg2 43. Rc8+) (42... Qd5+ $2 43. Rc4 $19) 43. Kb4 Re4+ (43... Rxg2 44. Rc8#) 44. Qd4 Rxd4+ 45. Kb5 Qa6+ 46. Kc5 Qb6#) 39. Ka5 {[%emt 0:00:33]} Qb6+ {[%emt 0:00:21][%mdl 32768] Weighted Error Value: White=0.59/Black=0.18 (very precise) .  Loses game:     	White=1     	---        Inaccurate:     	---       	Black=1      OK:         	White=14    	Black=11     Best:        	White=1     	Black=3      Strong:       	White=1     	Black=2     . An unexpected result.} ({Worse is} 39... Qxg2 40. Qd4 Qg5+ (40... Qxh2 41. Qd5+ Kg7 42. d7 $11) (40... Qa2+ 41. Kb4 $17) 41. Kb4 $15) 1/2-1/2

[Event "ESP-ch Teams Honor 2024"]
[Site "Melilla"]
[Date "2024.10.12"]
[Round "1.20"]
[White "Ivanchuk, Vasyl"]
[Black "Van Foreest, Jorden"]
[Result "1/2-1/2"]
[ECO "E92"]
[WhiteElo "2632"]
[BlackElo "2697"]
[Annotator "TA"]
[PlyCount "68"]
[EventDate "2024.10.11"]
[EventType "team-tourn"]
[EventCountry "ESP"]
[SourceTitle "playchess.com"]
[Source "ChessBase"]
[SourceQuality "1"]
[WhiteTeam "Solvay"]
[BlackTeam "Andreu"]
[TimeControl "5400+30"]

{[%evp 24,68,18,14,10,26,31,21,19,14,13,27,41,48,47,47,43,19,14,21,18,10,18,10,12,10,12,13,14,0,0,0,0,0,0,0,0,0,0,0,0,0,0,0,0,0,0]} 1. d4 {[%emt 0:00:04]} Nf6 {[%emt 0:00:24]} 2. c4 {[%emt 0:00:04]} g6 {[%emt 0:00:24]} 3. Nc3 {[%emt 0:00:05]} Bg7 {[%emt 0:00:15]} 4. e4 {[%emt 0:00:08]} d6 {[%emt 0:00:28]} 5. Be2 {[%emt 0:00:06]} O-O {[%emt 0:00:21]} 6. Nf3 {[%emt 0:00:03]} e5 {[%emt 0:00:37]} 7. Be3 {[%emt 0:00:04]} exd4 {[%emt 0:01:59]} 8. Nxd4 {[%emt 0:00:06]} Re8 {[%emt 0:00:51]} 9. f3 {[%emt 0:00:19]} c6 {[%emt 0:01:05]} 10. Qd2 {[%emt 0:12:19]} d5 {[%emt 0:01:57]} 11. exd5 {[%emt 0:00:05]} cxd5 {[%emt 0:00:20]} 12. O-O {[%emt 0:01:58]} dxc4 {[%emt 0:03:41]} 13. Bxc4 {[%emt 0:00:23]} Nc6 {[%emt 0:18:09]} 14. Nxc6 {[%emt 0:13:00]} Qxd2 {[%emt 0:03:46]} 15. Bxd2 {[%emt 0:00:16]} bxc6 {[%emt 0:00:12]} 16. Rfe1 {[%emt 0:04:07]} Bf5 {[%emt 0:01:38]} 17. g4 {[%emt 0:01:50]} Be6 {[%emt 0:12:07]} 18. Bxe6 {[%emt 0:01:35]} fxe6 {[%emt 0:01:11]} 19. Rac1 {[%emt 0:22:58]} Nd7 {[%emt 0:04:05]} 20. Ne4 {[%emt 0:08:28]} Bxb2 {[%emt 0:06:27] The position is equal.} 21. Rxc6 {[%emt 0:00:03]} Rac8 {[%emt 0:04:43]} 22. Rd6 {[%emt 0:04:33]} Nc5 {[%emt 0:02:47] [#] Strongly threatening ...Be5.} 23. Bg5 {[%emt 0:18:30]} Nxe4 {[%emt 0:03:35]} 24. Rxe4 {[%emt 0:00:00]} Rc2 {[%emt 0:09:17]} 25. Rd2 {[%emt 0:00:35]} Rec8 {[%emt 0:00:42]} 26. Rxe6 {[%emt 0:08:22][%cal Oe6e8]} Rxd2 $1 {[%emt 0:01:53]} 27. Bxd2 $11 {[%emt 0:00:01][%mdl 4096] Endgame. KRB-KRB} Bd4+ {[%emt 0:00:18]} 28. Be3 {[%emt 0:00:37]} Rc1+ {[%emt 0:00:35]} 29. Kg2 {[%emt 0:01:30]} Rc2+ {[%emt 0:00:29]} 30. Kf1 $1 {[%emt 0:00:02]} Kf7 {[%emt 0:01:26]} 31. Re4 {[%emt 0:00:01]} Bxe3 {[%emt 0:00:10]} 32. Rxe3 {[%emt 0:00:01]} Rxa2 {[%emt 0:00:08][%cal Oa7a5]} 33. h4 {[%emt 0:00:58]} a5 {[%emt 0:00:58][%cal Ba7a5,Ba5a4][%mdl 32]} 34. Rb3 {[%emt 0:01:06]} a4 {[%emt 0:00:13] Weighted Error Value: White=0.04 (flawless) /Black=0.01 (flawless) .  OK:         	White=9     	Black=12     Best:        	---       	Black=1      Strong:       	White=1     	Black=1} 1/2-1/2

[Event "ESP-ch Teams Honor 2024"]
[Site "Melilla"]
[Date "2024.10.12"]
[Round "1.21"]
[White "Vokhidov, Shamsiddin"]
[Black "Henderson de La Fuente, Lance"]
[Result "1-0"]
[ECO "C54"]
[WhiteElo "2668"]
[BlackElo "2525"]
[Annotator "TA"]
[PlyCount "91"]
[EventDate "2024.10.11"]
[EventType "team-tourn"]
[EventCountry "ESP"]
[SourceTitle "playchess.com"]
[Source "ChessBase"]
[SourceQuality "1"]
[WhiteTeam "Andreu"]
[BlackTeam "Solvay"]
[TimeControl "5400+30"]

{[%evp 17,91,19,22,23,33,26,20,10,30,25,33,16,37,22,22,19,16,14,22,5,52,51,43,48,53,51,53,45,50,48,39,27,45,42,42,39,47,21,108,106,112,106,104,74,187,184,299,301,315,307,367,372,362,369,416,380,442,446,494,340,556,570,552,570,531,522,4180,6315,2360,3929,29975,29976,29976,1504,29968,6397]} 1. e4 {[%emt 0:00:02]} e5 {[%emt 0:00:34]} 2. Nf3 {[%emt 0:00:09]} Nc6 {[%emt 0:00:19]} 3. Bc4 {[%emt 0:00:06]} Bc5 {[%emt 0:00:29]} 4. c3 {[%emt 0:00:06]} Nf6 {[%emt 0:00:14]} 5. d3 {[%emt 0:00:04]} d6 {[%emt 0:01:04]} 6. b4 {[%emt 0:00:07]} Bb6 {[%emt 0:00:21]} 7. a4 {[%emt 0:00:03]} a6 {[%emt 0:01:26]} 8. O-O {[%emt 0:01:29]} h6 {[%emt 0:04:11]} 9. Nbd2 {[%emt 0:02:59]} O-O {[%emt 0:00:29]} 10. Re1 {[%emt 0:03:06]} Ne7 {[%emt 0:01:45]} 11. d4 {[%emt 0:03:27]} Ng6 {[%emt 0:01:36]} 12. Bf1 {[%emt 0:04:36] The position is equal.} Be6 {[%emt 0:03:24]} 13. h3 {[%emt 0:04:09]} (13. a5 $5 Ba7 $8 14. h3 $11) 13... Ba7 {[%emt 0:04:08]} 14. Bb2 {[%emt 0:03:47]} Re8 {[%emt 0:02:49]} 15. c4 {[%emt 0:02:03]} a5 {[%emt 0:03:05]} 16. b5 {[%emt 0:01:10]} exd4 {[%emt 0:01:04]} 17. Nxd4 {[%emt 0:00:09]} Nd7 {[%emt 0:03:23]} 18. N2b3 {[%emt 0:11:43]} Bb6 {[%emt 0:05:03]} (18... Nge5 $11 {should be considered.}) 19. g3 $14 {[%emt 0:06:49]} Nge5 {[%emt 0:08:16]} 20. Rc1 {[%emt 0:03:14]} Nc5 {[%emt 0:01:14]} 21. Nxc5 {[%emt 0:07:29]} Bxc5 {[%emt 0:00:25]} 22. f4 {[%emt 0:01:29][%cal Og1h1] Hoping for Kh1!} f6 {[%emt 0:02:51][%cal Oe6f7]} 23. Kh2 {[%emt 0:00:48]} (23. fxe5 $2 {is the wrong capture.} dxe5 24. Kh2 exd4 $19 (24... Bxd4 $2 25. Bxd4 Qxd4 26. Qxd4 $19)) 23... Bxd4 {[%emt 0:00:19]} 24. Bxd4 {[%emt 0:00:04]} Nd7 {[%emt 0:00:12]} 25. Bg2 {[%emt 0:02:26]} Rb8 {[%emt 0:06:26]} 26. Rc3 $36 {[%emt 0:03:17][%mdl 2048] White has the initiative.} b6 {[%emt 0:01:20]} 27. g4 {[%emt 0:00:40]} Bf7 {[%emt 0:03:04]} (27... g5 $11 {remains equal.}) 28. h4 {[%emt 0:01:04] White is more active.} Nc5 {[%emt 0:06:55]} 29. Rg3 {[%emt 0:02:03]} Ne6 {[%emt 0:06:11]} 30. Be3 {[%emt 0:00:24]} Nc5 {[%emt 0:10:44] [#]} (30... g5 $16 31. f5 Nf4) 31. Bc1 $1 $18 {[%emt 0:07:57] g5 is the strong threat.} Re6 {[%emt 0:05:23] [#]} (31... Qe7 {was necessary.} 32. g5 Kh8) 32. f5 $1 {[%emt 0:01:21]} Re5 {[%emt 0:01:00]} 33. g5 {[%emt 0:00:04]} hxg5 {[%emt 0:00:13]} 34. hxg5 {[%emt 0:00:03]} Kf8 {[%emt 0:00:21]} 35. Rh3 {[%emt 0:03:10] And now Rh8+ would win.} Bg8 {[%emt 0:08:12]} 36. Qg4 {[%emt 0:02:53]} Nd7 {[%emt 0:04:39]} 37. Rh8 {[%emt 0:01:10]} Qe8 {[%emt 0:02:09]} 38. Re3 {[%emt 0:01:48]} fxg5 $2 {[%emt 0:00:56]} (38... Qf7 {might work better.} 39. Bb2 Rbe8) 39. Rg3 {[%emt 0:00:46]} Nf6 {[%emt 0:00:21]} 40. Qxg5 {[%emt 0:00:27]} Qf7 {[%emt 0:00:24]} 41. Qh4 {[%emt 0:00:21][%cal Og3g7] aiming for Rxg7!} Rbe8 {[%emt 0:02:17][%cal Re5e4] [#]} 42. Rxg7 $3 {[%emt 0:01:26][%mdl 512]} Qxg7 {[%emt 0:00:27]} 43. Bh6 {[%emt 0:00:01]} Qxh6 {[%emt 0:00:59]} 44. Rxh6 {[%emt 0:00:41]} Nd7 {[%emt 0:00:29]} 45. Rh8 {[%emt 0:00:14]} (45. Rg6 $142 Bf7 46. Qh6+ Ke7 47. Qg5+ Kf8 48. Rh6 Bg8 49. Rh8 (49. c5 R5e7 $18) 49... Kf7 50. Qg6+ Ke7 51. Rxg8 Rxg8 52. Qxg8) 45... Kf7 {[%emt 0:00:37]} 46. Bf3 {[%emt 0:00:12] Weighted Error Value: White=0.10 (very precise) /Black=0.55.  Mistake:       	---       	Black=5      Inaccurate:     	White=1     	Black=1      OK:         	White=14    	Black=13     Best:        	White=1     	Black=2      Strong:       	White=1     	---        Brilliant:      	White=1     	---} 1-0